[Event "RUS-ch Rapid 2021"]
[Site "Sochi"]
[Date "2021.10.13"]
[Round "8.19"]
[White "Kobalia, Mikhail"]
[Black "Zakaryan, David"]
[Result "0-1"]
[ECO "B40"]
[WhiteElo "2600"]
[BlackElo "2283"]
[Annotator "RC"]
[PlyCount "118"]
[EventDate "2021.10.12"]
[EventType "swiss"]
[EventCountry "RUS"]
[SourceTitle "playchess.com"]
[Source "ChessBase"]
[SourceQuality "1"]
[TimeControl "900+10"]

1. e4 {[%emt 0:00:00]} c5 {[%emt 0:00:00]} 2. Nf3 {[%emt 0:00:07]} e6 {[%emt 0:
00:11]} 3. g3 {[%emt 0:00:07]} Nc6 {[%emt 0:00:00]} 4. Bg2 {[%emt 0:00:00]} Nf6
{[%emt 0:00:00]} 5. Qe2 {[%emt 0:00:00]} e5 {[%emt 0:00:01]} 6. O-O {[%emt 0:
00:06]} Be7 {[%emt 0:00:07]} 7. d3 {[%emt 0:00:00]} O-O {[%emt 0:00:22]} 8. c3
{[%emt 0:00:00]} Re8 {[%emt 0:00:08]} 9. Na3 {[%emt 0:00:00]} h6 {[%emt 0:00:
15]} 10. Nc4 {[%emt 0:00:07]} Bf8 {[%emt 0:00:03]} 11. Ne3 {[%emt 0:01:20]} d6
{[%emt 0:00:00]} 12. Nd2 {[%emt 0:00:10]} b6 {[%emt 0:01:27]} 13. f4 {[%emt 0:
00:07]} exf4 {[%emt 0:01:26]} 14. gxf4 {[%emt 0:00:00]} Qc7 {[%emt 0:00:30]}
15. Kh1 {[%emt 0:03:00]} Ba6 {[%emt 0:00:02]} 16. Rg1 {[%emt 0:00:47]} Rad8 {
[%emt 0:00:15]} 17. c4 {[%emt 0:01:29]} b5 {[%emt 0:01:40]} 18. b3 {[%emt 0:00:
01]} bxc4 {[%emt 0:00:00]} 19. bxc4 {[%emt 0:00:11]} Nd4 {[%emt 0:00:03]} 20.
Qf2 {[%emt 0:00:07]} Rb8 {[%emt 0:00:16]} 21. Nb3 {[%emt 0:00:16]} g6 {[%emt 0:
02:11]} 22. Bb2 {[%emt 0:03:22]} Bg7 {[%emt 0:00:35]} 23. Bh3 {[%emt 0:02:30]}
Bb7 {[%emt 0:00:31]} 24. Bg2 {[%emt 0:01:05]} Bc6 {[%emt 0:01:06]} 25. Rab1 {
[%emt 0:00:28]} Kh7 {[%emt 0:00:28]} 26. Ba1 {[%emt 0:00:25]} a5 {[%emt 0:00:
41]} 27. Qh4 {[%emt 0:00:16]} Qe7 {[%emt 0:00:11]} 28. Rge1 {[%emt 0:00:06]}
Nh5 {[%emt 0:01:17]} 29. Qf2 {[%emt 0:00:33]} Nxb3 {[%emt 0:00:27]} 30. Bxg7 {
[%emt 0:00:09]} Kxg7 {[%emt 0:00:06]} 31. Rxb3 {[%emt 0:00:13]} Rxb3 {[%emt 0:
00:08]} 32. axb3 {[%emt 0:00:00]} Rb8 {[%emt 0:00:08]} 33. Nd5 {[%emt 0:01:01]}
Bxd5 {[%emt 0:00:13]} 34. cxd5 {[%emt 0:00:01]} Qf6 {[%emt 0:00:22]} 35. Rf1 {
[%emt 0:00:55]} Rxb3 {[%emt 0:00:37]} 36. Qe3 {[%emt 0:00:06]} Qd4 {[%emt 0:01:
41]} 37. Qxd4+ {[%emt 0:00:00]} cxd4 {[%emt 0:00:00]} 38. e5 {[%emt 0:00:03]}
a4 {[%emt 0:00:54]} 39. exd6 {[%emt 0:00:20]} Rb6 {[%emt 0:00:15]} 40. Ra1 {
[%emt 0:00:34]} Nxf4 {[%emt 0:00:04]} 41. d7 {[%emt 0:00:00]} Rd6 {[%emt 0:00:
02]} 42. Rxa4 {[%emt 0:00:00]} Nxd3 {[%emt 0:00:39]} 43. Rxd4 {[%emt 0:00:09]}
Ne5 {[%emt 0:00:10]} 44. h3 {[%emt 0:00:32]} Nxd7 {[%emt 0:00:00]} 45. Kh2 {
[%emt 0:00:03]} f5 {[%emt 0:00:03]} 46. Rc4 {[%emt 0:00:08]} Kf6 {[%emt 0:00:
02]} 47. Rh4 {[%emt 0:00:06]} h5 {[%emt 0:00:10]} 48. Rb4 {[%emt 0:00:04]} g5 {
[%emt 0:00:15]} 49. h4 {[%emt 0:00:06]} g4 {[%emt 0:00:10]} 50. Rb1 {[%emt 0:
00:01]} Nb6 {[%emt 0:00:04]} 51. Rb5 {[%emt 0:00:12]} Ke5 {[%emt 0:00:07]} 52.
Kg3 {[%emt 0:00:00]} f4+ {[%emt 0:00:01]} 53. Kf2 {[%emt 0:00:06]} f3 {[%emt 0:
00:09]} 54. Bf1 {[%emt 0:00:02]} Nxd5 {[%emt 0:00:02]} 55. Ra5 {[%emt 0:00:26]}
Rc6 {[%emt 0:00:16]} 56. Kg3 {[%emt 0:00:05]} Rc1 {[%emt 0:00:24]} 57. Bd3 {
[%emt 0:00:00]} Kd4 {[%emt 0:00:10]} 58. Bg6 {[%emt 0:00:00]} Rg1+ {[%emt 0:00:
03]} 59. Kh2 {[%emt 0:00:35]} f2 {[%emt 0:00:08]} 0-1

[Event "RUS-ch Rapid 2021"]
[Site "Sochi"]
[Date "2021.10.13"]
[Round "8.20"]
[White "Antipov, Mikhail Al."]
[Black "Klukin, Kirill"]
[Result "1/2-1/2"]
[ECO "B30"]
[WhiteElo "2619"]
[BlackElo "2346"]
[Annotator "RC"]
[PlyCount "89"]
[EventDate "2021.10.12"]
[EventType "swiss"]
[EventCountry "RUS"]
[SourceTitle "playchess.com"]
[Source "ChessBase"]
[SourceQuality "1"]
[TimeControl "900+10"]

1. e4 {[%emt 0:00:00]} c5 {[%emt 0:00:00]} 2. Nc3 {[%emt 0:00:00]} Nc6 {
[%emt 0:00:00]} 3. Nf3 {[%emt 0:00:00]} e5 {[%emt 0:01:30]} 4. Bc4 {[%emt 0:00:
05]} Be7 {[%emt 0:00:00]} 5. d3 {[%emt 0:00:00]} d6 {[%emt 0:00:00]} 6. a4 {
[%emt 0:00:00]} Nf6 {[%emt 0:00:00]} 7. Bg5 {[%emt 0:00:00]} O-O {[%emt 0:00:
00]} 8. Bxf6 {[%emt 0:00:00]} Bxf6 {[%emt 0:00:00]} 9. Nd5 {[%emt 0:00:00]} Be6
{[%emt 0:00:00]} 10. c3 {[%emt 0:00:00]} Rb8 {[%emt 0:04:52]} 11. Qd2 {[%emt 0:
00:12]} a6 {[%emt 0:00:00]} 12. O-O {[%emt 0:00:00]} g6 {[%emt 0:00:00]} 13. h3
{[%emt 0:03:00]} Bg7 {[%emt 0:00:00]} 14. Ng5 {[%emt 0:01:42]} Ne7 {[%emt 0:00:
27]} 15. Nxe6 {[%emt 0:01:06]} fxe6 {[%emt 0:00:00]} 16. Ne3 {[%emt 0:00:00]}
Qd7 {[%emt 0:00:21]} 17. a5 {[%emt 0:01:13]} Kh8 {[%emt 0:01:50]} 18. Qe2 {
[%emt 0:00:46]} d5 {[%emt 0:02:25]} 19. Bb3 {[%emt 0:01:06]} b5 {[%emt 0:00:00]
} 20. axb6 {[%emt 0:01:48]} Rxb6 {[%emt 0:00:44]} 21. Ba4 {[%emt 0:00:00]} Qb7
{[%emt 0:00:00]} 22. Ra2 {[%emt 0:00:00]} Rb8 {[%emt 0:01:03]} 23. b3 {[%emt 0:
00:49]} Qc7 {[%emt 0:01:21]} 24. Re1 {[%emt 0:00:00]} Rd8 {[%emt 0:01:13]} 25.
Qg4 {[%emt 0:01:17]} Rf8 {[%emt 0:00:40]} 26. g3 {[%emt 0:02:26]} Bh6 {[%emt 0:
00:00]} 27. Ng2 {[%emt 0:00:00]} d4 {[%emt 0:00:35]} 28. cxd4 {[%emt 0:00:51]}
cxd4 {[%emt 0:00:00]} 29. Ree2 {[%emt 0:00:21]} Qd6 {[%emt 0:01:12]} 30. Rac2 {
[%emt 0:01:20]} Rbb8 {[%emt 0:00:00]} 31. h4 {[%emt 0:00:00]} Rbc8 {[%emt 0:00:
00]} 32. h5 {[%emt 0:00:00]} Rg8 {[%emt 0:01:21]} 33. Nh4 {[%emt 0:00:00]} Rcf8
{[%emt 0:00:20]} 34. hxg6 {[%emt 0:00:46]} Nxg6 {[%emt 0:00:00]} 35. Rc6 {
[%emt 0:01:15]} Qxc6 {[%emt 0:00:22]} 36. Bxc6 {[%emt 0:00:00]} Nf4 {[%emt 0:
00:00]} 37. Qf3 {[%emt 0:00:09]} Nh3+ {[%emt 0:00:03]} 38. Kh2 {[%emt 0:01:06]}
Rxf3 {[%emt 0:00:01]} 39. Nxf3 {[%emt 0:00:00]} Rf8 {[%emt 0:00:00]} 40. Nxe5 {
[%emt 0:00:00]} Rxf2+ {[%emt 0:00:56]} 41. Rxf2 {[%emt 0:00:00]} Nxf2 {[%emt 0:
00:00]} 42. Kg2 {[%emt 0:00:37]} Bg7 {[%emt 0:00:19]} 43. Kxf2 {[%emt 0:00:14]}
Bxe5 {[%emt 0:00:00]} 44. Bd7 {[%emt 0:00:00]} Kg7 {[%emt 0:00:07]} 45. Bxe6 {
[%emt 0:00:02]} 1/2-1/2

[Event "RUS-ch Rapid 2021"]
[Site "Sochi"]
[Date "2021.10.13"]
[Round "8.21"]
[White "Kezin, Roman"]
[Black "Rodin, Dmitrij"]
[Result "1-0"]
[ECO "E16"]
[WhiteElo "2492"]
[BlackElo "2359"]
[Annotator "ChessBase"]
[PlyCount "85"]
[EventDate "2021.10.12"]
[EventType "swiss"]
[EventCountry "RUS"]
[SourceTitle "playchess.com"]
[Source "ChessBase"]
[SourceQuality "1"]
[TimeControl "900+10"]

1. d4 {[%emt 0:00:00]} Nf6 {[%emt 0:00:05]} 2. c4 {[%emt 0:00:02]} e6 {[%emt 0:
00:00]} 3. g3 {[%emt 0:00:00]} Bb4+ {[%emt 0:00:05]} 4. Bd2 {[%emt 0:00:04]} a5
{[%emt 0:00:03]} 5. Bg2 {[%emt 0:00:16]} O-O {[%emt 0:00:00]} 6. Nf3 {[%emt 0:
00:07]} b6 {[%emt 0:00:00]} 7. O-O {[%emt 0:00:20]} Bb7 {[%emt 0:00:06]} 8. Nc3
{[%emt 0:03:49]} d6 {[%emt 0:01:33]} 9. d5 {[%emt 0:02:43]} e5 {[%emt 0:00:52]}
10. Ne1 {[%emt 0:02:38]} Nbd7 {[%emt 0:01:05]} 11. e4 {[%emt 0:00:14]} Nc5 {
[%emt 0:01:48]} 12. Qe2 {[%emt 0:00:00]} Ba6 {[%emt 0:00:11]} 13. Nc2 {[%emt 0:
00:48]} Bxc3 {[%emt 0:00:45]} 14. Bxc3 {[%emt 0:00:04]} Na4 {[%emt 0:00:13]}
15. Qd3 {[%emt 0:01:05]} Re8 {[%emt 0:02:01]} 16. Ne3 {[%emt 0:01:53]} Nxc3 {
[%emt 0:01:06]} 17. Qxc3 {[%emt 0:00:00]} Qd7 {[%emt 0:00:01]} 18. b3 {[%emt 0:
00:13]} Rac8 {[%emt 0:00:19]} 19. Rfd1 {[%emt 0:00:16]} g6 {[%emt 0:01:36]} 20.
a3 {[%emt 0:00:16]} c6 {[%emt 0:00:19]} 21. dxc6 {[%emt 0:01:44]} Rxc6 {
[%emt 0:00:32]} 22. Qd3 {[%emt 0:01:58]} Qc7 {[%emt 0:00:43]} 23. a4 {[%emt 0:
00:18]} Bc8 {[%emt 0:00:24]} 24. Ra2 {[%emt 0:00:10]} Be6 {[%emt 0:00:06]} 25.
Rad2 {[%emt 0:00:00]} Nd7 {[%emt 0:00:10]} 26. Qc3 {[%emt 0:00:04]} Nc5 {
[%emt 0:00:04]} 27. f4 {[%emt 0:00:03]} f6 {[%emt 0:03:33]} 28. f5 {[%emt 0:00:
00]} Bf7 {[%emt 0:00:03]} 29. h4 {[%emt 0:00:00]} Qe7 {[%emt 0:00:16]} 30. Rf2
{[%emt 0:00:13]} Kg7 {[%emt 0:01:05]} 31. Rdf1 {[%emt 0:00:04]} d5 {[%emt 0:00:
21]} 32. cxd5 {[%emt 0:00:43]} Rcc8 {[%emt 0:00:17]} 33. Nc4 {[%emt 0:00:03]}
Nd7 {[%emt 0:00:04]} 34. Bh3 {[%emt 0:00:15]} Rf8 {[%emt 0:00:07]} 35. Qe3 {
[%emt 0:00:16]} gxf5 {[%emt 0:00:06]} 36. Bxf5 {[%emt 0:00:00]} Rb8 {[%emt 0:
00:14]} 37. Bxd7 {[%emt 0:00:07]} Qxd7 {[%emt 0:00:00]} 38. Rxf6 {[%emt 0:00:
04]} Bg6 {[%emt 0:00:11]} 39. Nxe5 {[%emt 0:00:02]} Qc7 {[%emt 0:00:42]} 40.
Rxf8 {[%emt 0:00:12]} Rxf8 {[%emt 0:00:00]} 41. Rxf8 {[%emt 0:00:02]} Kxf8 {
[%emt 0:00:00]} 42. Nxg6+ {[%emt 0:00:03]} hxg6 {[%emt 0:00:02]} 43. Qf4+ {
[%emt 0:00:09]} 1-0

[Event "RUS-ch Rapid 2021"]
[Site "Sochi"]
[Date "2021.10.13"]
[Round "8.22"]
[White "Smirnov, Timofey"]
[Black "Khanin, Semen"]
[Result "0-1"]
[ECO "C54"]
[WhiteElo "2409"]
[BlackElo "2521"]
[Annotator "RC"]
[PlyCount "141"]
[EventDate "2021.10.12"]
[EventType "swiss"]
[EventCountry "RUS"]
[SourceTitle "playchess.com"]
[Source "ChessBase"]
[SourceQuality "1"]
[TimeControl "900+10"]

1. e4 {[%emt 0:00:00]} e5 {[%emt 0:00:00]} 2. Nf3 {[%emt 0:00:00]} Nc6 {
[%emt 0:00:00]} 3. Bc4 {[%emt 0:00:10]} Bc5 {[%emt 0:00:03]} 4. c3 {[%emt 0:00:
01]} Nf6 {[%emt 0:00:02]} 5. d3 {[%emt 0:00:09]} d6 {[%emt 0:00:02]} 6. O-O {
[%emt 0:00:00]} a6 {[%emt 0:00:00]} 7. a4 {[%emt 0:00:06]} Ba7 {[%emt 0:00:09]}
8. b4 {[%emt 0:00:07]} O-O {[%emt 0:00:04]} 9. Na3 {[%emt 0:00:13]} Ne7 {
[%emt 0:00:10]} 10. Nc2 {[%emt 0:00:03]} Ng6 {[%emt 0:00:08]} 11. Be3 {[%emt 0:
00:54]} h6 {[%emt 0:00:43]} 12. Re1 {[%emt 0:01:02]} Bb8 {[%emt 0:00:50]} 13.
h3 {[%emt 0:00:38]} c6 {[%emt 0:00:13]} 14. Nd2 {[%emt 0:00:42]} Re8 {[%emt 0:
00:58]} 15. a5 {[%emt 0:00:12]} d5 {[%emt 0:00:43]} 16. Ba2 {[%emt 0:00:34]}
Be6 {[%emt 0:01:06]} 17. Bb6 {[%emt 0:00:17]} Qd6 {[%emt 0:00:37]} 18. Nf1 {
[%emt 0:05:04]} Nf4 {[%emt 0:05:21]} 19. Ng3 {[%emt 0:01:08]} Qd7 {[%emt 0:00:
38]} 20. Ne3 {[%emt 0:00:43]} g6 {[%emt 0:00:29]} 21. exd5 {[%emt 0:02:28]}
cxd5 {[%emt 0:01:39]} 22. Bb3 {[%emt 0:00:03]} Qc8 {[%emt 0:00:34]} 23. Ba4 {
[%emt 0:00:42]} Bd7 {[%emt 0:00:02]} 24. Bxd7 {[%emt 0:00:34]} Qxd7 {[%emt 0:
00:05]} 25. Ne2 {[%emt 0:00:17]} Nxh3+ {[%emt 0:02:29]} 26. gxh3 {[%emt 0:00:
04]} Qxh3 {[%emt 0:00:00]} 27. Ng3 {[%emt 0:01:00]} e4 {[%emt 0:00:22]} 28. Bd4
{[%emt 0:00:46]} Bxg3 {[%emt 0:01:09]} 29. fxg3 {[%emt 0:00:00]} Qxg3+ {
[%emt 0:00:04]} 30. Kh1 {[%emt 0:00:57]} Qh4+ {[%emt 0:00:11]} 31. Kg1 {
[%emt 0:00:10]} exd3 {[%emt 0:01:07]} 32. Bxf6 {[%emt 0:00:18]} Qxf6 {[%emt 0:
00:00]} 33. Qxd3 {[%emt 0:00:03]} Qf3 {[%emt 0:00:17]} 34. Qd2 {[%emt 0:00:31]}
Re4 {[%emt 0:00:00]} 35. Ng2 {[%emt 0:00:09]} Rae8 {[%emt 0:00:03]} 36. Rxe4 {
[%emt 0:00:29]} dxe4 {[%emt 0:00:31]} 37. Rf1 {[%emt 0:00:20]} Qh3 {[%emt 0:00:
16]} 38. Qd5 {[%emt 0:00:11]} Qe6 {[%emt 0:00:12]} 39. Qxb7 {[%emt 0:00:17]} e3
{[%emt 0:00:00]} 40. Re1 {[%emt 0:00:04]} e2 {[%emt 0:00:06]} 41. Qf3 {[%emt 0:
00:09]} g5 {[%emt 0:00:24]} 42. Kf2 {[%emt 0:00:02]} Qc4 {[%emt 0:00:00]} 43.
Rxe2 {[%emt 0:00:29]} Rxe2+ {[%emt 0:00:03]} 44. Qxe2 {[%emt 0:00:00]} Qxc3 {
[%emt 0:00:01]} 45. Qxa6 {[%emt 0:00:10]} Qxb4 {[%emt 0:00:04]} 46. Ne3 {
[%emt 0:00:12]} h5 {[%emt 0:00:24]} 47. Qb6 {[%emt 0:00:21]} Qd2+ {[%emt 0:00:
04]} 48. Kf3 {[%emt 0:00:08]} g4+ {[%emt 0:00:06]} 49. Ke4 {[%emt 0:00:04]} g3
{[%emt 0:00:07]} 50. Qb8+ {[%emt 0:00:04]} Kh7 {[%emt 0:00:00]} 51. Qe5 {
[%emt 0:00:22]} g2 {[%emt 0:00:47]} 52. Qxh5+ {[%emt 0:00:08]} Kg8 {[%emt 0:00:
02]} 53. Qg5+ {[%emt 0:00:14]} Kf8 {[%emt 0:00:08]} 54. Qxg2 {[%emt 0:00:10]}
Qxa5 {[%emt 0:00:04]} 55. Qb2 {[%emt 0:00:05]} Qa4+ {[%emt 0:00:10]} 56. Ke5 {
[%emt 0:00:14]} Qa5+ {[%emt 0:00:18]} 57. Nd5 {[%emt 0:00:04]} Qe1+ {[%emt 0:
00:01]} 58. Kd6 {[%emt 0:00:05]} Qe6+ {[%emt 0:00:04]} 59. Kc5 {[%emt 0:00:05]}
Qc8+ {[%emt 0:00:03]} 60. Kd4 {[%emt 0:00:18]} Qg4+ {[%emt 0:00:02]} 61. Kd3 {
[%emt 0:00:17]} Qg3+ {[%emt 0:00:06]} 62. Ne3 {[%emt 0:00:10]} Qd6+ {[%emt 0:
00:04]} 63. Ke4 {[%emt 0:00:02]} Qe6+ {[%emt 0:00:03]} 64. Kf4 {[%emt 0:00:04]}
Qh6+ {[%emt 0:00:02]} 65. Kf3 {[%emt 0:00:10]} Qh3+ {[%emt 0:00:02]} 66. Kf4 {
[%emt 0:00:15]} Qh6+ {[%emt 0:00:01]} 67. Ke4 {[%emt 0:00:08]} Qe6+ {[%emt 0:
00:07]} 68. Kd3 {[%emt 0:00:15]} Qd6+ {[%emt 0:00:01]} 69. Qd4 {[%emt 0:00:15]}
Qxd4+ {[%emt 0:00:02]} 70. Kxd4 {[%emt 0:00:00]} f5 {[%emt 0:00:02]} 71. Nxf5 {
[%emt 0:00:02]} 0-1

[Event "RUS-ch Rapid 2021"]
[Site "Sochi"]
[Date "2021.10.13"]
[Round "8.23"]
[White "Gochelashvili, David"]
[Black "Trushnikov, Sergey"]
[Result "1-0"]
[ECO "B06"]
[WhiteElo "2400"]
[BlackElo "2525"]
[Annotator "ChessBase"]
[PlyCount "63"]
[EventDate "2021.10.12"]
[EventType "swiss"]
[EventCountry "RUS"]
[SourceTitle "playchess.com"]
[Source "ChessBase"]
[SourceQuality "1"]
[TimeControl "900+10"]

1. e4 {[%emt 0:00:00]} g6 {[%emt 0:00:46]} 2. d4 {[%emt 0:00:09]} Bg7 {[%emt 0:
00:02]} 3. Nc3 {[%emt 0:00:07]} d6 {[%emt 0:00:00]} 4. Be3 {[%emt 0:00:12]} a6
{[%emt 0:00:00]} 5. a4 {[%emt 0:00:05]} Nc6 {[%emt 0:00:15]} 6. Nge2 {[%emt 0:
00:14]} Nf6 {[%emt 0:00:26]} 7. f3 {[%emt 0:02:54]} h5 {[%emt 0:00:05]} 8. Qd2
{[%emt 0:01:26]} Rb8 {[%emt 0:00:26]} 9. h3 {[%emt 0:00:20]} h4 {[%emt 0:02:35]
} 10. Bg5 {[%emt 0:02:19]} Ng8 {[%emt 0:02:31]} 11. Nd5 {[%emt 0:02:24]} Bh6 {
[%emt 0:01:05]} 12. Bxh6 {[%emt 0:01:08]} Rxh6 {[%emt 0:00:08]} 13. b4 {
[%emt 0:00:23]} e6 {[%emt 0:00:31]} 14. Ne3 {[%emt 0:00:21]} Kf8 {[%emt 0:00:
43]} 15. b5 {[%emt 0:00:05]} Nce7 {[%emt 0:00:24]} 16. c4 {[%emt 0:02:04]} Ra8
{[%emt 0:00:44]} 17. Nc3 {[%emt 0:00:09]} Rh5 {[%emt 0:01:16]} 18. Be2 {
[%emt 0:00:08]} Rh7 {[%emt 0:02:01]} 19. O-O {[%emt 0:00:12]} g5 {[%emt 0:00:
58]} 20. f4 {[%emt 0:01:54]} Ng6 {[%emt 0:00:36]} 21. f5 {[%emt 0:00:28]} Nf4 {
[%emt 0:00:16]} 22. fxe6 {[%emt 0:00:04]} fxe6 {[%emt 0:00:28]} 23. Ng4 {
[%emt 0:00:00]} Nh6 {[%emt 0:01:25]} 24. e5 {[%emt 0:01:16]} Nxg4 {[%emt 0:00:
10]} 25. Bxg4 {[%emt 0:00:11]} dxe5 {[%emt 0:00:08]} 26. Ne4 {[%emt 0:00:00]}
Rf7 {[%emt 0:00:25]} 27. Rad1 {[%emt 0:00:31]} axb5 {[%emt 0:00:23]} 28. Qb4+ {
[%emt 0:00:17]} Qe7 {[%emt 0:00:04]} 29. Qxb5 {[%emt 0:00:00]} Ng6 {[%emt 0:00:
41]} 30. Bh5 {[%emt 0:00:24]} Kg7 {[%emt 0:00:15]} 31. Bxg6 {[%emt 0:00:17]}
Kxg6 {[%emt 0:00:00]} 32. Qxe5 {[%emt 0:00:04]} 1-0

[Event "RUS-ch Rapid 2021"]
[Site "Sochi"]
[Date "2021.10.13"]
[Round "8.24"]
[White "Truskavetsky, Alexandr"]
[Black "Khegay, Dmitriy"]
[Result "0-1"]
[ECO "D03"]
[WhiteElo "2371"]
[BlackElo "2521"]
[Annotator "ChessBase"]
[PlyCount "110"]
[EventDate "2021.10.12"]
[EventType "swiss"]
[EventCountry "RUS"]
[SourceTitle "playchess.com"]
[Source "ChessBase"]
[SourceQuality "1"]
[TimeControl "900+10"]

1. d4 {[%emt 0:00:09]} Nf6 {[%emt 0:00:04]} 2. Nf3 {[%emt 0:00:11]} e6 {
[%emt 0:00:00]} 3. Bg5 {[%emt 0:00:01]} d5 {[%emt 0:00:14]} 4. e3 {[%emt 0:00:
09]} h6 {[%emt 0:00:00]} 5. Bh4 {[%emt 0:00:33]} c5 {[%emt 0:00:08]} 6. Nbd2 {
[%emt 0:00:09]} Nbd7 {[%emt 0:00:03]} 7. c3 {[%emt 0:00:22]} Bd6 {[%emt 0:00:
00]} 8. Bd3 {[%emt 0:00:16]} b6 {[%emt 0:00:40]} 9. O-O {[%emt 0:00:29]} Bb7 {
[%emt 0:00:01]} 10. Qe2 {[%emt 0:00:40]} O-O {[%emt 0:03:36]} 11. e4 {[%emt 0:
03:55]} dxe4 {[%emt 0:00:00]} 12. Nxe4 {[%emt 0:00:05]} Be7 {[%emt 0:00:00]}
13. Nxf6+ {[%emt 0:00:42]} Bxf6 {[%emt 0:00:05]} 14. Bxf6 {[%emt 0:00:22]} Qxf6
{[%emt 0:01:42]} 15. Be4 {[%emt 0:00:26]} Bxe4 {[%emt 0:00:00]} 16. Qxe4 {
[%emt 0:00:04]} cxd4 {[%emt 0:00:00]} 17. Qxd4 {[%emt 0:00:46]} Qxd4 {[%emt 0:
01:28]} 18. Nxd4 {[%emt 0:00:00]} Rac8 {[%emt 0:00:11]} 19. Rfd1 {[%emt 0:00:
18]} Nc5 {[%emt 0:00:04]} 20. Rd2 {[%emt 0:00:49]} Rfd8 {[%emt 0:00:47]} 21.
Rad1 {[%emt 0:00:14]} Na4 {[%emt 0:00:00]} 22. Kf1 {[%emt 0:00:57]} Nxb2 {
[%emt 0:00:10]} 23. Rxb2 {[%emt 0:02:00]} e5 {[%emt 0:00:01]} 24. Rbd2 {
[%emt 0:04:43]} exd4 {[%emt 0:00:01]} 25. cxd4 {[%emt 0:00:09]} Kf8 {[%emt 0:
00:07]} 26. f3 {[%emt 0:00:00]} Ke7 {[%emt 0:00:10]} 27. Kf2 {[%emt 0:00:06]}
Kd6 {[%emt 0:00:23]} 28. Re1 {[%emt 0:00:14]} Re8 {[%emt 0:00:10]} 29. Re4 {
[%emt 0:00:52]} f5 {[%emt 0:00:31]} 30. Rf4 {[%emt 0:00:12]} Rf8 {[%emt 0:00:
15]} 31. g4 {[%emt 0:00:09]} fxg4 {[%emt 0:00:09]} 32. Rxg4 {[%emt 0:00:00]}
Rc7 {[%emt 0:00:04]} 33. d5 {[%emt 0:00:06]} g5 {[%emt 0:00:45]} 34. h4 {
[%emt 0:00:03]} Rf5 {[%emt 0:00:10]} 35. hxg5 {[%emt 0:00:06]} hxg5 {[%emt 0:
00:00]} 36. Kg2 {[%emt 0:00:36]} Rc3 {[%emt 0:00:05]} 37. Ra4 {[%emt 0:00:09]}
Rc7 {[%emt 0:02:04]} 38. Rad4 {[%emt 0:00:10]} Rf4 {[%emt 0:00:47]} 39. Kg3 {
[%emt 0:00:07]} Rcf7 {[%emt 0:00:14]} 40. R4d3 {[%emt 0:00:13]} R7f5 {[%emt 0:
00:52]} 41. Ra3 {[%emt 0:00:00]} Rf7 {[%emt 0:01:49]} 42. Rc3 {[%emt 0:00:00]}
R7f6 {[%emt 0:02:13]} 43. Ra3 {[%emt 0:00:02]} a5 {[%emt 0:00:04]} 44. Rc3 {
[%emt 0:00:27]} b5 {[%emt 0:00:27]} 45. Rdc2 {[%emt 0:00:17]} b4 {[%emt 0:00:
41]} 46. Rc6+ {[%emt 0:00:00]} Kxd5 {[%emt 0:00:01]} 47. R6c5+ {[%emt 0:00:16]}
Kd4 {[%emt 0:00:03]} 48. Rxa5 {[%emt 0:00:03]} Rxf3+ {[%emt 0:00:05]} 49. Kg4 {
[%emt 0:00:00]} Rf2 {[%emt 0:00:46]} 50. Rcc5 {[%emt 0:00:31]} Rg2+ {[%emt 0:
00:20]} 51. Kh3 {[%emt 0:00:03]} Rxa2 {[%emt 0:00:11]} 52. Rd5+ {[%emt 0:00:22]
} Kc4 {[%emt 0:00:12]} 53. Rac5+ {[%emt 0:00:15]} Kb3 {[%emt 0:00:05]} 54. Rxg5
{[%emt 0:00:10]} Rf3+ {[%emt 0:00:04]} 55. Kg4 {[%emt 0:00:05]} Rc3 {[%emt 0:
00:02]} 0-1

[Event "RUS-ch Rapid 2021"]
[Site "Sochi"]
[Date "2021.10.13"]
[Round "9.1"]
[White "Moiseenko, Vadim"]
[Black "Riazantsev, Alexander"]
[Result "1-0"]
[ECO "A01"]
[WhiteElo "2542"]
[BlackElo "2634"]
[Annotator "RC"]
[PlyCount "115"]
[EventDate "2021.10.12"]
[EventType "swiss"]
[EventCountry "RUS"]
[SourceTitle "playchess.com"]
[Source "ChessBase"]
[SourceQuality "1"]
[TimeControl "900+10"]

1. b3 {[%emt 0:00:00]} d5 {[%emt 0:01:30]} 2. Bb2 {[%emt 0:00:10]} f6 {[%emt 0:
00:22]} 3. d4 {[%emt 0:02:00]} Bf5 {[%emt 0:00:52]} 4. c4 {[%emt 0:00:33]} e5 {
[%emt 0:01:45]} 5. Nc3 {[%emt 0:00:18]} Bb4 {[%emt 0:04:06]} 6. e3 {[%emt 0:01:
02]} Ne7 {[%emt 0:01:48]} 7. dxe5 {[%emt 0:00:11]} fxe5 {[%emt 0:00:00]} 8. a3
{[%emt 0:01:22]} Bxc3+ {[%emt 0:01:02]} 9. Bxc3 {[%emt 0:00:00]} Nbc6 {[%emt 0:
01:38]} 10. Nf3 {[%emt 0:00:13]} Bg4 {[%emt 0:00:00]} 11. cxd5 {[%emt 0:01:20]}
Nxd5 {[%emt 0:00:11]} 12. Bb2 {[%emt 0:00:14]} Qd6 {[%emt 0:00:52]} 13. Be2 {
[%emt 0:01:50]} O-O-O {[%emt 0:00:32]} 14. h3 {[%emt 0:00:33]} Bh5 {[%emt 0:00:
25]} 15. O-O {[%emt 0:00:25]} Qe7 {[%emt 0:00:27]} 16. Nd2 {[%emt 0:00:47]}
Bxe2 {[%emt 0:00:52]} 17. Qxe2 {[%emt 0:00:00]} Nf6 {[%emt 0:00:01]} 18. Rac1 {
[%emt 0:00:11]} Qe6 {[%emt 0:00:13]} 19. b4 {[%emt 0:00:23]} a6 {[%emt 0:00:20]
} 20. Rc2 {[%emt 0:01:14]} Rd6 {[%emt 0:00:03]} 21. Rfc1 {[%emt 0:00:40]} Rhd8
{[%emt 0:00:00]} 22. Nf3 {[%emt 0:00:22]} Kb8 {[%emt 0:00:16]} 23. Rc4 {
[%emt 0:00:53]} Nd7 {[%emt 0:01:02]} 24. Ng5 {[%emt 0:00:15]} Qe7 {[%emt 0:00:
16]} 25. Ne4 {[%emt 0:00:13]} Rg6 {[%emt 0:00:04]} 26. R4c2 {[%emt 0:01:05]}
Rc8 {[%emt 0:00:15]} 27. Rd2 {[%emt 0:00:30]} Qe6 {[%emt 0:00:18]} 28. Kh1 {
[%emt 0:00:42]} Qf5 {[%emt 0:00:00]} 29. Qd3 {[%emt 0:00:34]} Nb6 {[%emt 0:00:
32]} 30. Nc5 {[%emt 0:00:00]} Qg5 {[%emt 0:00:11]} 31. Qe4 {[%emt 0:00:09]} Ka7
{[%emt 0:00:08]} 32. Rdc2 {[%emt 0:01:06]} Nd8 {[%emt 0:00:13]} 33. Bxe5 {
[%emt 0:00:07]} c6 {[%emt 0:00:09]} 34. Bd4 {[%emt 0:00:49]} Ka8 {[%emt 0:00:
00]} 35. Nd3 {[%emt 0:00:12]} Nd7 {[%emt 0:00:10]} 36. Nf4 {[%emt 0:00:09]} Rh6
{[%emt 0:00:21]} 37. a4 {[%emt 0:00:03]} Nf6 {[%emt 0:00:06]} 38. Qf3 {[%emt 0:
00:14]} Qf5 {[%emt 0:00:13]} 39. b5 {[%emt 0:00:05]} g5 {[%emt 0:00:00]} 40.
Rc5 {[%emt 0:00:22]} Qd7 {[%emt 0:00:16]} 41. Rxg5 {[%emt 0:00:03]} cxb5 {
[%emt 0:00:05]} 42. Rxc8+ {[%emt 0:00:00]} Qxc8 {[%emt 0:00:00]} 43. axb5 {
[%emt 0:00:09]} axb5 {[%emt 0:00:07]} 44. Rxb5 {[%emt 0:00:08]} Nc6 {[%emt 0:
00:00]} 45. Bb6 {[%emt 0:00:14]} Qe8 {[%emt 0:00:45]} 46. Rb1 {[%emt 0:00:19]}
Qe5 {[%emt 0:00:02]} 47. Bd4 {[%emt 0:00:12]} Qf5 {[%emt 0:00:07]} 48. Ra1+ {
[%emt 0:00:09]} Kb8 {[%emt 0:00:00]} 49. Bxf6 {[%emt 0:00:25]} Qxf6 {[%emt 0:
00:12]} 50. Qd1 {[%emt 0:00:15]} Qe5 {[%emt 0:00:06]} 51. Qa4 {[%emt 0:00:05]}
Rd6 {[%emt 0:00:10]} 52. Qa8+ {[%emt 0:00:02]} Kc7 {[%emt 0:00:03]} 53. Rb1 {
[%emt 0:00:05]} Nd8 {[%emt 0:00:11]} 54. Rc1+ {[%emt 0:00:14]} Nc6 {[%emt 0:00:
05]} 55. Qg8 {[%emt 0:00:07]} Qb2 {[%emt 0:00:46]} 56. Rf1 {[%emt 0:00:31]} Qc2
{[%emt 0:00:12]} 57. Nd5+ {[%emt 0:00:05]} Kd7 {[%emt 0:00:09]} 58. Qf7+ {
[%emt 0:00:15]} 1-0